[Event "Titled Tuesday Blitz February 01 A 2022"]
[White "Sarana, Alexey"]
[Black "Maksimovic, Bojan"]
[WhiteFideId "24133795"]
[BlackFideId "14408120"]
[WhiteElo "2665"]
[BlackElo "2450"]
[Result "1-0"]
[Round "02"]
[TimeControl "180+1"]
[Date "2022.02.01"]
[WhiteClock "0:00:11"]
[BlackClock "0:00:02"]

1. d4 {[%clk 0:03:00]}  d5 {[%clk 0:02:59]} 2. c4 {[%clk 0:02:52]}  e5 {[%clk 0:03:00]} 3. dxe5 {[%clk 0:02:52]}  d4 {[%clk 0:03:00]} 4. Nf3 {[%clk 0:02:52]}  Nc6 {[%clk 0:03:01]} 5. Nbd2 {[%clk 0:02:52]}  Nge7 {[%clk 0:03:00]} 6. a3 {[%clk 0:02:49]}  a5 {[%clk 0:02:58]} 7. Nb3 {[%clk 0:02:49]}  Nf5 {[%clk 0:02:58]} 8. Bg5 {[%clk 0:02:47]}  Be7 {[%clk 0:02:56]} 9. Bxe7 {[%clk 0:02:42]}  Qxe7 {[%clk 0:02:56]} 10. Nbxd4 {[%clk 0:02:42]}  Nfxd4 {[%clk 0:02:56]} 11. Nxd4 {[%clk 0:02:43]}  Nxe5 {[%clk 0:02:56]} 12. e3 {[%clk 0:02:42]}  O-O {[%clk 0:02:52]} 13. Be2 {[%clk 0:02:42]}  Re8 {[%clk 0:02:49]} 14. O-O {[%clk 0:02:42]}  Ra6 {[%clk 0:02:49]} 15. Nf3 {[%clk 0:02:27]}  Rh6 {[%clk 0:01:57]} 16. Qd4 {[%clk 0:02:08]}  Nc6 {[%clk 0:01:53]} 17. Qf4 {[%clk 0:01:59]}  Rg6 {[%clk 0:01:48]} 18. Nh4 {[%clk 0:01:43]}  Re6 {[%clk 0:01:13]} 19. Nf5 {[%clk 0:01:15]}  Qf6 {[%clk 0:01:11]} 20. Bd3 {[%clk 0:01:16]}  Ne5 {[%clk 0:00:41]} 21. Bc2 {[%clk 0:01:15]}  g6 {[%clk 0:00:38]} 22. Nd4 {[%clk 0:01:15]}  Ra6 {[%clk 0:00:18]} 23. Qxf6 {[%clk 0:01:14]}  Rxf6 {[%clk 0:00:19]} 24. c5 {[%clk 0:01:15]}  b6 {[%clk 0:00:12]} 25. b4 {[%clk 0:01:12]}  bxc5 {[%clk 0:00:10]} 26. bxc5 {[%clk 0:01:13]}  Ba6 {[%clk 0:00:11]} 27. Rfd1 {[%clk 0:01:12]}  Rb8 {[%clk 0:00:11]} 28. Rab1 {[%clk 0:01:09]}  Rxb1 {[%clk 0:00:11]} 29. Rxb1 {[%clk 0:01:10]}  Nd7 {[%clk 0:00:12]} 30. c6 {[%clk 0:01:09]}  Nb6 {[%clk 0:00:12]} 31. Be4 {[%clk 0:01:05]}  Rd6 {[%clk 0:00:12]} 32. g4 {[%clk 0:01:04]}  Kg7 {[%clk 0:00:12]} 33. h3 {[%clk 0:01:04]}  Kf6 {[%clk 0:00:13]} 34. Kg2 {[%clk 0:01:04]}  Ke5 {[%clk 0:00:13]} 35. Bf3 {[%clk 0:01:00]}  Rd8 {[%clk 0:00:13]} 36. Kg3 {[%clk 0:00:59]}  Bd3 {[%clk 0:00:11]} 37. Rc1 {[%clk 0:00:58]}  Ba6 {[%clk 0:00:12]} 38. Rc5+ {[%clk 0:00:58]}  Kd6 {[%clk 0:00:10]} 39. Rxa5 {[%clk 0:00:58]}  Bd3 {[%clk 0:00:11]} 40. h4 {[%clk 0:00:55]}  f6 {[%clk 0:00:11]} 41. g5 {[%clk 0:00:54]}  f5 {[%clk 0:00:11]} 42. h5 {[%clk 0:00:38]}  Re8 {[%clk 0:00:11]} 43. h6 {[%clk 0:00:38]}  Rd8 {[%clk 0:00:10]} 44. a4 {[%clk 0:00:32]}  Rf8 {[%clk 0:00:10]} 45. Ra7 {[%clk 0:00:31]}  Rc8 {[%clk 0:00:05]} 46. Nb5+ {[%clk 0:00:28]}  Bxb5 {[%clk 0:00:05]} 47. axb5 {[%clk 0:00:29]}  Kc5 {[%clk 0:00:05]} 48. Ra1 {[%clk 0:00:27]}  Kxb5 {[%clk 0:00:05]} 49. Rd1 {[%clk 0:00:25]}  Kc5 {[%clk 0:00:05]} 50. Kf4 {[%clk 0:00:25]}  Re8 {[%clk 0:00:05]} 51. Rd2 {[%clk 0:00:25]}  Kc4 {[%clk 0:00:06]} 52. Rd1 {[%clk 0:00:23]}  Kc5 {[%clk 0:00:06]} 53. Bg2 {[%clk 0:00:24]}  Kc4 {[%clk 0:00:07]} 54. Rc1+ {[%clk 0:00:24]}  Kb5 {[%clk 0:00:07]} 55. Bf1+ {[%clk 0:00:25]}  Kb4 {[%clk 0:00:07]} 56. Rd1 {[%clk 0:00:24]}  Kc5 {[%clk 0:00:07]} 57. Bg2 {[%clk 0:00:25]}  Kb5 {[%clk 0:00:07]} 58. Kg3 {[%clk 0:00:23]}  Kc5 {[%clk 0:00:07]} 59. Rd4 {[%clk 0:00:23]}  Kb5 {[%clk 0:00:07]} 60. Kh2 {[%clk 0:00:24]}  Kc5 {[%clk 0:00:08]} 61. Kg1 {[%clk 0:00:24]}  Re7 {[%clk 0:00:07]} 62. Rd8 {[%clk 0:00:24]}  Kb5 {[%clk 0:00:04]} 63. Kf1 {[%clk 0:00:24]}  Kc5 {[%clk 0:00:04]} 64. Ke2 {[%clk 0:00:24]}  Kb5 {[%clk 0:00:05]} 65. Kd3 {[%clk 0:00:24]}  Kc5 {[%clk 0:00:05]} 66. Bh1 {[%clk 0:00:24]}  Kb5 {[%clk 0:00:05]} 67. Kd4 {[%clk 0:00:24]}  Kb4 {[%clk 0:00:03]} 68. Bf3 {[%clk 0:00:24]}  Kb5 {[%clk 0:00:04]} 69. Bg2 {[%clk 0:00:24]}  Kb4 {[%clk 0:00:04]} 70. Rg8 {[%clk 0:00:24]}  Re6 {[%clk 0:00:02]} 71. Rg7 {[%clk 0:00:22]}  Nc4 {[%clk 0:00:02]} 72. Rd7 {[%clk 0:00:08]}  Nb6 {[%clk 0:00:01]} 73. Rxc7 {[%clk 0:00:08]}  Rd6+ {[%clk 0:00:01]} 74. Ke5 {[%clk 0:00:08]}  Nc4+ {[%clk 0:00:02]} 75. Kf4 {[%clk 0:00:07]}  Rd2 {[%clk 0:00:03]} 76. Rb7+ {[%clk 0:00:08]}  Kc5 {[%clk 0:00:03]} 77. c7 {[%clk 0:00:09]}  Rxf2+ {[%clk 0:00:03]} 78. Kg3 {[%clk 0:00:09]}  Nd6 {[%clk 0:00:02]} 79. c8=Q+ {[%clk 0:00:10]}  Nxc8 {[%clk 0:00:02]} 80. Kxf2 {[%clk 0:00:11]} 1-0


[Site "https://www.chess.com"]

[Event "Titled Tuesday Blitz February 01 A 2022"]
[White "Tabatabaei, M. Amin"]
[Black "Danilenko, Dmitriy"]
[WhiteFideId "12521213"]
[BlackFideId "14120844"]
[WhiteElo "2585"]
[BlackElo "2606"]
[Result "1-0"]
[Round "02"]
[TimeControl "180+1"]
[Date "2022.02.01"]
[WhiteClock "0:01:55"]
[BlackClock "0:00:14"]

1. d4 {[%clk 0:03:00]}  f5 {[%clk 0:03:00]} 2. Qd3 {[%clk 0:02:52]}  d5 {[%clk 0:02:58]} 3. g4 {[%clk 0:02:51]}  fxg4 {[%clk 0:02:56]} 4. h3 {[%clk 0:02:49]}  Nf6 {[%clk 0:02:52]} 5. Bf4 {[%clk 0:02:49]}  Nc6 {[%clk 0:02:50]} 6. e3 {[%clk 0:02:48]}  g6 {[%clk 0:02:47]} 7. Nc3 {[%clk 0:02:43]}  a6 {[%clk 0:02:46]} 8. O-O-O {[%clk 0:02:39]}  Bf5 {[%clk 0:02:46]} 9. Qd2 {[%clk 0:02:38]}  Qd7 {[%clk 0:02:45]} 10. hxg4 {[%clk 0:02:38]}  Bxg4 {[%clk 0:02:45]} 11. f3 {[%clk 0:02:39]}  Bf5 {[%clk 0:02:44]} 12. Bg2 {[%clk 0:02:29]}  O-O-O {[%clk 0:02:06]} 13. Nge2 {[%clk 0:02:29]}  e6 {[%clk 0:01:44]} 14. e4 {[%clk 0:02:29]}  dxe4 {[%clk 0:01:45]} 15. fxe4 {[%clk 0:02:29]}  Bg4 {[%clk 0:01:46]} 16. d5 {[%clk 0:02:30]}  exd5 {[%clk 0:01:26]} 17. exd5 {[%clk 0:02:31]}  Na5 {[%clk 0:01:26]} 18. Qd4 {[%clk 0:02:20]}  Bg7 {[%clk 0:00:54]} 19. Qa7 {[%clk 0:02:06]}  Qf5 {[%clk 0:00:54]} 20. Rhf1 {[%clk 0:02:01]}  Bxe2 {[%clk 0:00:36]} 21. Nxe2 {[%clk 0:02:01]}  Nc4 {[%clk 0:00:22]} 22. Qa8+ {[%clk 0:01:55]}  Kd7 {[%clk 0:00:22]} 23. Qxb7 {[%clk 0:01:56]}  Nd6 {[%clk 0:00:14]} 24. Bxd6 {[%clk 0:01:55]} 1-0


[Site "https://www.chess.com"]

[Event "Titled Tuesday Blitz February 01 A 2022"]
[White "Vakhlamov, Igor L."]
[Black "Paravyan, David"]
[WhiteFideId "24126748"]
[BlackFideId "4194985"]
[WhiteElo "2401"]
[BlackElo "2569"]
[Result "1/2-1/2"]
[Round "02"]
[TimeControl "180+1"]
[Date "2022.02.01"]
[WhiteClock "0:01:11"]
[BlackClock "0:00:43"]

1. e4 {[%clk 0:03:00]}  e5 {[%clk 0:03:00]} 2. Nf3 {[%clk 0:03:01]}  Nf6 {[%clk 0:03:00]} 3. Nc3 {[%clk 0:03:01]}  Nc6 {[%clk 0:03:00]} 4. Bb5 {[%clk 0:03:01]}  Nd4 {[%clk 0:02:48]} 5. Bc4 {[%clk 0:03:01]}  Bc5 {[%clk 0:02:48]} 6. d3 {[%clk 0:02:59]}  d6 {[%clk 0:02:47]} 7. Na4 {[%clk 0:02:58]}  b5 {[%clk 0:02:43]} 8. Nxd4 {[%clk 0:02:54]}  bxc4 {[%clk 0:02:42]} 9. Nf5 {[%clk 0:02:51]}  Bxf5 {[%clk 0:02:40]} 10. exf5 {[%clk 0:02:51]}  cxd3 {[%clk 0:02:33]} 11. Nxc5 {[%clk 0:02:51]}  dxc5 {[%clk 0:02:34]} 12. Qxd3 {[%clk 0:02:51]}  Qxd3 {[%clk 0:02:33]} 13. cxd3 {[%clk 0:02:52]}  O-O-O {[%clk 0:02:33]} 14. Ke2 {[%clk 0:02:52]}  Rd5 {[%clk 0:02:32]} 15. Be3 {[%clk 0:02:45]}  Rhd8 {[%clk 0:02:32]} 16. Rac1 {[%clk 0:02:35]}  e4 {[%clk 0:01:52]} 17. dxe4 {[%clk 0:02:36]}  Nxe4 {[%clk 0:01:53]} 18. Rc4 {[%clk 0:02:13]}  Nd6 {[%clk 0:01:36]} 19. Rxc5 {[%clk 0:02:09]}  Nxf5 {[%clk 0:01:33]} 20. Rxd5 {[%clk 0:01:48]}  Rxd5 {[%clk 0:01:33]} 21. Rc1 {[%clk 0:01:48]}  Kb7 {[%clk 0:01:25]} 22. Rc3 {[%clk 0:01:38]}  a5 {[%clk 0:01:04]} 23. Rb3+ {[%clk 0:01:33]}  Kc6 {[%clk 0:01:01]} 24. Rc3+ {[%clk 0:01:33]}  Kb7 {[%clk 0:01:01]} 25. Rb3+ {[%clk 0:01:33]}  Kc6 {[%clk 0:00:57]} 26. Rc3+ {[%clk 0:01:32]}  Kd7 {[%clk 0:00:54]} 27. Rd3 {[%clk 0:01:29]}  Kc6 {[%clk 0:00:43]} 28. Rc3+ {[%clk 0:01:11]} 1/2-1/2


[Site "https://www.chess.com"]

[Event "Titled Tuesday Blitz February 01 A 2022"]
[White "Yaksin, Oleg"]
[Black "Shimanov, Aleksandr"]
[WhiteFideId "24105880"]
[BlackFideId "4198603"]
[WhiteElo "2256"]
[BlackElo "2636"]
[Result "0-1"]
[Round "02"]
[TimeControl "180+1"]
[Date "2022.02.01"]
[WhiteClock "0:00:02"]
[BlackClock "0:00:12"]

1. d4 {[%clk 0:03:00]}  d5 {[%clk 0:02:58]} 2. c4 {[%clk 0:03:00]}  c6 {[%clk 0:02:51]} 3. Nf3 {[%clk 0:03:00]}  Nf6 {[%clk 0:02:51]} 4. Qb3 {[%clk 0:03:00]}  e6 {[%clk 0:02:48]} 5. g3 {[%clk 0:02:46]}  Nbd7 {[%clk 0:02:45]} 6. Bg2 {[%clk 0:02:46]}  Be7 {[%clk 0:02:32]} 7. O-O {[%clk 0:02:46]}  b6 {[%clk 0:02:30]} 8. Bf4 {[%clk 0:02:36]}  Nh5 {[%clk 0:02:25]} 9. Be3 {[%clk 0:02:23]}  O-O {[%clk 0:02:21]} 10. Rd1 {[%clk 0:02:22]}  Ba6 {[%clk 0:02:17]} 11. Nbd2 {[%clk 0:02:10]}  Nhf6 {[%clk 0:02:11]} 12. Rac1 {[%clk 0:01:48]}  Rc8 {[%clk 0:01:52]} 13. h3 {[%clk 0:01:33]}  h6 {[%clk 0:01:51]} 14. Ne5 {[%clk 0:01:19]}  Nxe5 {[%clk 0:01:41]} 15. dxe5 {[%clk 0:01:20]}  Nd7 {[%clk 0:01:41]} 16. f4 {[%clk 0:01:20]}  b5 {[%clk 0:00:59]} 17. cxd5 {[%clk 0:01:16]}  cxd5 {[%clk 0:01:00]} 18. Bxa7 {[%clk 0:01:08]}  Nc5 {[%clk 0:00:57]} 19. Bxc5 {[%clk 0:01:03]}  Bxc5+ {[%clk 0:00:58]} 20. Kh2 {[%clk 0:01:03]}  Qb6 {[%clk 0:00:57]} 21. e4 {[%clk 0:00:48]}  d4 {[%clk 0:00:55]} 22. Bf1 {[%clk 0:00:49]}  Qa5 {[%clk 0:00:32]} 23. Nf3 {[%clk 0:00:42]}  Bb6 {[%clk 0:00:23]} 24. Bd3 {[%clk 0:00:33]}  b4 {[%clk 0:00:19]} 25. Bxa6 {[%clk 0:00:22]}  Qxa6 {[%clk 0:00:20]} 26. Rxc8 {[%clk 0:00:08]}  Qe2+ {[%clk 0:00:18]} 27. Kh1 {[%clk 0:00:08]}  Rxc8 {[%clk 0:00:18]} 28. Qd3 {[%clk 0:00:08]}  Qxb2 {[%clk 0:00:17]} 29. f5 {[%clk 0:00:06]}  Rc3 {[%clk 0:00:15]} 30. Qf1 {[%clk 0:00:05]}  Qc2 {[%clk 0:00:11]} 31. fxe6 {[%clk 0:00:05]}  fxe6 {[%clk 0:00:12]} 32. Re1 {[%clk 0:00:04]}  Re3 {[%clk 0:00:12]} 33. Rxe3 {[%clk 0:00:03]}  dxe3 {[%clk 0:00:13]} 34. Nh4 {[%clk 0:00:03]}  e2 {[%clk 0:00:12]} 35. Qe1 {[%clk 0:00:02]}  Qd1 {[%clk 0:00:12]} 36. Ng2 {[%clk 0:00:02]}  Bf2 {[%clk 0:00:12]} 0-1


[Site "https://www.chess.com"]

[Event "Titled Tuesday Blitz February 01 A 2022"]
[White "Zhigalko, Sergei"]
[Black "Khachiyan, Melikset"]
[WhiteFideId "13502956"]
[BlackFideId "13300512"]
[WhiteElo "2662"]
[BlackElo "2484"]
[Result "0-1"]
[Round "02"]
[TimeControl "180+1"]
[Date "2022.02.01"]
[WhiteClock "0:00:01"]
[BlackClock "0:01:06"]

1. e4 {[%clk 0:03:00]}  e5 {[%clk 0:02:59]} 2. Nf3 {[%clk 0:03:00]}  Nc6 {[%clk 0:02:59]} 3. Bc4 {[%clk 0:03:01]}  Bc5 {[%clk 0:02:58]} 4. b4 {[%clk 0:03:01]}  Bxb4 {[%clk 0:02:57]} 5. c3 {[%clk 0:03:01]}  Be7 {[%clk 0:02:56]} 6. d4 {[%clk 0:03:00]}  Na5 {[%clk 0:02:57]} 7. Bd3 {[%clk 0:03:00]}  d6 {[%clk 0:02:55]} 8. dxe5 {[%clk 0:02:59]}  dxe5 {[%clk 0:02:55]} 9. Nxe5 {[%clk 0:03:00]}  Nf6 {[%clk 0:02:53]} 10. O-O {[%clk 0:03:00]}  O-O {[%clk 0:02:53]} 11. Qc2 {[%clk 0:03:00]}  b6 {[%clk 0:02:46]} 12. Nd2 {[%clk 0:02:55]}  Bb7 {[%clk 0:02:46]} 13. Ndf3 {[%clk 0:02:50]}  Qc8 {[%clk 0:02:37]} 14. h3 {[%clk 0:02:39]}  Qe6 {[%clk 0:02:35]} 15. Bf4 {[%clk 0:02:37]}  h6 {[%clk 0:02:34]} 16. Nd4 {[%clk 0:02:37]}  Qc8 {[%clk 0:02:32]} 17. Rfe1 {[%clk 0:02:27]}  Re8 {[%clk 0:02:32]} 18. Nf5 {[%clk 0:02:25]}  Bf8 {[%clk 0:02:32]} 19. Rad1 {[%clk 0:02:18]}  c5 {[%clk 0:02:02]} 20. Bb5 {[%clk 0:01:45]}  Bxe4 {[%clk 0:01:32]} 21. Rxe4 {[%clk 0:01:33]}  Qxf5 {[%clk 0:01:32]} 22. Bxe8 {[%clk 0:01:18]}  Rxe8 {[%clk 0:01:28]} 23. Rde1 {[%clk 0:00:38]}  Nxe4 {[%clk 0:01:27]} 24. Rxe4 {[%clk 0:00:39]}  f6 {[%clk 0:01:22]} 25. g4 {[%clk 0:00:33]}  Qe6 {[%clk 0:01:19]} 26. Qe2 {[%clk 0:00:21]}  Nc6 {[%clk 0:01:10]} 27. Nxc6 {[%clk 0:00:04]}  Qxe4 {[%clk 0:01:10]} 28. Qxe4 {[%clk 0:00:01]}  Rxe4 {[%clk 0:01:11]} 29. Bb8 {[%clk 0:00:01]}  a6 {[%clk 0:01:06]} 30. Ba7 {[%clk 0:00:01]}  b5 {[%clk 0:01:06]} 0-1


[Site "https://www.chess.com"]

[Event "Titled Tuesday Blitz February 01 A 2022"]
[White "Andreikin, Dmitry"]
[Black "Ter-Sahakyan, Samvel"]
[WhiteFideId "4158814"]
[BlackFideId "13302531"]
[WhiteElo "2736"]
[BlackElo "2592"]
[Result "1-0"]
[Round "03"]
[TimeControl "180+1"]
[Date "2022.02.01"]
[WhiteClock "0:01:14"]
[BlackClock "0:00:12"]

1. d4 {[%clk 0:03:00]}  Nf6 {[%clk 0:02:59]} 2. c4 {[%clk 0:03:00]}  e6 {[%clk 0:02:59]} 3. Nc3 {[%clk 0:03:00]}  Bb4 {[%clk 0:02:59]} 4. a3 {[%clk 0:03:01]}  Bxc3+ {[%clk 0:02:59]} 5. bxc3 {[%clk 0:03:01]}  b6 {[%clk 0:02:56]} 6. e4 {[%clk 0:02:58]}  Nxe4 {[%clk 0:02:35]} 7. Qg4 {[%clk 0:02:57]}  Nf6 {[%clk 0:02:23]} 8. Qxg7 {[%clk 0:02:56]}  Rg8 {[%clk 0:02:24]} 9. Qh6 {[%clk 0:02:57]}  Bb7 {[%clk 0:01:59]} 10. Bg5 {[%clk 0:02:53]}  Rg6 {[%clk 0:01:58]} 11. Qh4 {[%clk 0:02:53]}  h6 {[%clk 0:01:45]} 12. Bxh6 {[%clk 0:02:52]}  Ng8 {[%clk 0:01:32]} 13. Qxd8+ {[%clk 0:02:49]}  Kxd8 {[%clk 0:01:32]} 14. Bf4 {[%clk 0:02:48]}  Rxg2 {[%clk 0:01:32]} 15. Nh3 {[%clk 0:02:19]}  Rg6 {[%clk 0:01:19]} 16. Rg1 {[%clk 0:02:19]}  Rxg1 {[%clk 0:01:17]} 17. Nxg1 {[%clk 0:02:20]}  Nc6 {[%clk 0:01:13]} 18. Nf3 {[%clk 0:02:16]}  Na5 {[%clk 0:01:03]} 19. Nd2 {[%clk 0:02:10]}  d6 {[%clk 0:01:02]} 20. O-O-O {[%clk 0:02:07]}  Ke7 {[%clk 0:01:00]} 21. Bd3 {[%clk 0:02:02]}  c5 {[%clk 0:00:48]} 22. h4 {[%clk 0:01:48]}  Rc8 {[%clk 0:00:40]} 23. Kb2 {[%clk 0:01:28]}  cxd4 {[%clk 0:00:37]} 24. cxd4 {[%clk 0:01:29]}  d5 {[%clk 0:00:38]} 25. cxd5 {[%clk 0:01:27]}  Bxd5 {[%clk 0:00:38]} 26. h5 {[%clk 0:01:27]}  f5 {[%clk 0:00:33]} 27. Rg1 {[%clk 0:01:25]}  Kf8 {[%clk 0:00:14]} 28. h6 {[%clk 0:01:22]}  Nf6 {[%clk 0:00:12]} 29. Rg7 {[%clk 0:01:14]} 1-0


[Site "https://www.chess.com"]

[Event "Titled Tuesday Blitz February 01 A 2022"]
[White "Blohberger, Felix"]
[Black "Demchenko, Anton"]
[WhiteFideId "1632051"]
[BlackFideId "4160258"]
[WhiteElo "2474"]
[BlackElo "2539"]
[Result "1/2-1/2"]
[Round "03"]
[TimeControl "180+1"]
[Date "2022.02.01"]
[WhiteClock "0:00:04"]
[BlackClock "0:00:03"]

1. Nf3 {[%clk 0:02:55]}  Nf6 {[%clk 0:02:59]} 2. b3 {[%clk 0:02:48]}  g6 {[%clk 0:02:59]} 3. Bb2 {[%clk 0:02:48]}  Bg7 {[%clk 0:02:59]} 4. d4 {[%clk 0:02:49]}  O-O {[%clk 0:02:58]} 5. e3 {[%clk 0:02:49]}  b6 {[%clk 0:02:59]} 6. Be2 {[%clk 0:02:45]}  Bb7 {[%clk 0:02:59]} 7. O-O {[%clk 0:02:46]}  d6 {[%clk 0:02:57]} 8. c4 {[%clk 0:02:46]}  Ne4 {[%clk 0:02:57]} 9. Nc3 {[%clk 0:02:45]}  Nxc3 {[%clk 0:02:56]} 10. Bxc3 {[%clk 0:02:46]}  Nd7 {[%clk 0:02:56]} 11. Qd2 {[%clk 0:02:44]}  e6 {[%clk 0:02:53]} 12. Rfd1 {[%clk 0:02:41]}  Qe7 {[%clk 0:02:52]} 13. Qc2 {[%clk 0:02:41]}  f5 {[%clk 0:02:51]} 14. Nd2 {[%clk 0:02:37]}  e5 {[%clk 0:02:46]} 15. dxe5 {[%clk 0:02:32]}  dxe5 {[%clk 0:02:44]} 16. Nf1 {[%clk 0:02:26]}  a5 {[%clk 0:02:36]} 17. a3 {[%clk 0:02:21]}  Nc5 {[%clk 0:02:33]} 18. b4 {[%clk 0:02:17]}  Ne4 {[%clk 0:02:31]} 19. Be1 {[%clk 0:02:16]}  Ng5 {[%clk 0:01:13]} 20. bxa5 {[%clk 0:02:03]}  f4 {[%clk 0:01:13]} 21. c5 {[%clk 0:01:06]}  bxc5 {[%clk 0:00:51]} 22. Bc4+ {[%clk 0:01:03]}  Kh8 {[%clk 0:00:50]} 23. Bd5 {[%clk 0:00:58]}  c6 {[%clk 0:00:41]} 24. Be4 {[%clk 0:00:56]}  c4 {[%clk 0:00:33]} 25. Rab1 {[%clk 0:00:48]}  Rf7 {[%clk 0:00:25]} 26. Qxc4 {[%clk 0:00:40]}  Nxe4 {[%clk 0:00:23]} 27. Qxe4 {[%clk 0:00:41]}  c5 {[%clk 0:00:24]} 28. Qc4 {[%clk 0:00:24]}  Ba6 {[%clk 0:00:18]} 29. Qd5 {[%clk 0:00:22]}  Raf8 {[%clk 0:00:18]} 30. e4 {[%clk 0:00:15]}  f3 {[%clk 0:00:12]} 31. Ng3 {[%clk 0:00:12]}  fxg2 {[%clk 0:00:10]} 32. Rbc1 {[%clk 0:00:09]}  h5 {[%clk 0:00:04]} 33. Qxc5 {[%clk 0:00:03]}  h4 {[%clk 0:00:03]} 34. Qxe7 {[%clk 0:00:02]}  Rxe7 {[%clk 0:00:04]} 35. Bb4 {[%clk 0:00:02]}  hxg3 {[%clk 0:00:03]} 36. hxg3 {[%clk 0:00:03]}  Ref7 {[%clk 0:00:03]} 37. Bxf8 {[%clk 0:00:04]}  Bxf8 {[%clk 0:00:03]} 38. Kxg2 {[%clk 0:00:03]}  Be2 {[%clk 0:00:03]} 39. Rd2 {[%clk 0:00:02]}  Bf3+ {[%clk 0:00:03]} 40. Kf1 {[%clk 0:00:02]}  Bh6 {[%clk 0:00:03]} 41. Rcc2 {[%clk 0:00:02]}  Bxd2 {[%clk 0:00:03]} 42. Rxd2 {[%clk 0:00:03]}  Rh7 {[%clk 0:00:02]} 43. Rd8+ {[%clk 0:00:04]}  Kg7 {[%clk 0:00:02]} 44. Rd7+ {[%clk 0:00:03]}  Kh6 {[%clk 0:00:03]} 45. Rxh7+ {[%clk 0:00:04]}  Kxh7 {[%clk 0:00:04]} 46. a6 {[%clk 0:00:03]}  Bxe4 {[%clk 0:00:04]} 47. Ke2 {[%clk 0:00:03]}  Kg7 {[%clk 0:00:04]} 48. Ke3 {[%clk 0:00:04]}  Bc6 {[%clk 0:00:04]} 49. f4 {[%clk 0:00:03]}  Kf6 {[%clk 0:00:05]} 50. a7 {[%clk 0:00:03]}  Kf5 {[%clk 0:00:05]} 51. a4 {[%clk 0:00:03]}  Ke6 {[%clk 0:00:04]} 52. a5 {[%clk 0:00:02]}  Kf5 {[%clk 0:00:05]} 53. a6 {[%clk 0:00:02]}  Ba8 {[%clk 0:00:05]} 54. fxe5 {[%clk 0:00:02]}  Kxe5 {[%clk 0:00:06]} 55. Kd3 {[%clk 0:00:02]}  Kd5 {[%clk 0:00:05]} 56. Ke3 {[%clk 0:00:02]}  g5 {[%clk 0:00:04]} 57. Kd3 {[%clk 0:00:03]}  Kc5 {[%clk 0:00:02]} 58. Ke3 {[%clk 0:00:03]}  Kb6 {[%clk 0:00:02]} 59. Kd4 {[%clk 0:00:03]}  Kxa7 {[%clk 0:00:01]} 60. g4 {[%clk 0:00:03]}  Bf3 {[%clk 0:00:01]} 61. Ke5 {[%clk 0:00:03]}  Bxg4 {[%clk 0:00:02]} 62. Kf6 {[%clk 0:00:04]}  Be2 {[%clk 0:00:02]} 63. Kxg5 {[%clk 0:00:04]}  Bxa6 {[%clk 0:00:03]} 1/2-1/2


[Site "https://www.chess.com"]

[Event "Titled Tuesday Blitz February 01 A 2022"]
[White "Cagara, Paulina"]
[Black "Dobrov, Vladimir"]
[WhiteFideId "1124870"]
[BlackFideId "4136594"]
[WhiteElo "1828"]
[BlackElo "2614"]
[Result "0-1"]
[Round "03"]
[TimeControl "180+1"]
[Date "2022.02.01"]
[WhiteClock "0:00:08"]
[BlackClock "0:00:25"]

1. e4 {[%clk 0:03:00]}  c5 {[%clk 0:02:59]} 2. Nc3 {[%clk 0:03:00]}  Nc6 {[%clk 0:02:59]} 3. Bb5 {[%clk 0:02:59]}  Nd4 {[%clk 0:03:00]} 4. Bc4 {[%clk 0:02:58]}  g6 {[%clk 0:03:00]} 5. Nf3 {[%clk 0:02:57]}  Bg7 {[%clk 0:03:01]} 6. Nxd4 {[%clk 0:02:56]}  cxd4 {[%clk 0:03:02]} 7. Qf3 {[%clk 0:02:56]}  f5 {[%clk 0:03:02]} 8. Ne2 {[%clk 0:02:52]}  Qa5 {[%clk 0:03:01]} 9. O-O {[%clk 0:02:46]}  e6 {[%clk 0:03:00]} 10. c3 {[%clk 0:02:44]}  fxe4 {[%clk 0:02:55]} 11. Qxe4 {[%clk 0:02:43]}  d5 {[%clk 0:02:54]} 12. Qd3 {[%clk 0:02:30]}  dxc4 {[%clk 0:02:53]} 13. Qxc4 {[%clk 0:02:29]}  Qd5 {[%clk 0:02:53]} 14. Qa4+ {[%clk 0:02:28]}  Bd7 {[%clk 0:02:52]} 15. Qb4 {[%clk 0:02:19]}  a5 {[%clk 0:02:46]} 16. Qa3 {[%clk 0:02:14]}  d3 {[%clk 0:02:33]} 17. Ng3 {[%clk 0:01:46]}  Ne7 {[%clk 0:02:29]} 18. b3 {[%clk 0:01:45]}  Bc6 {[%clk 0:02:20]} 19. f3 {[%clk 0:01:44]}  Nf5 {[%clk 0:02:18]} 20. Ne4 {[%clk 0:01:41]}  O-O-O {[%clk 0:01:38]} 21. Bb2 {[%clk 0:01:37]}  Qb5 {[%clk 0:01:07]} 22. c4 {[%clk 0:01:32]}  Qb4 {[%clk 0:01:01]} 23. Qxb4 {[%clk 0:01:28]}  axb4 {[%clk 0:01:02]} 24. Bxg7 {[%clk 0:01:20]}  Nxg7 {[%clk 0:01:03]} 25. a3 {[%clk 0:01:20]}  bxa3 {[%clk 0:01:03]} 26. Rxa3 {[%clk 0:01:19]}  Kc7 {[%clk 0:01:03]} 27. Ng5 {[%clk 0:01:15]}  Rd7 {[%clk 0:00:55]} 28. Re1 {[%clk 0:01:14]}  Re7 {[%clk 0:00:52]} 29. b4 {[%clk 0:01:10]}  h6 {[%clk 0:00:52]} 30. Nh3 {[%clk 0:01:06]}  Rd8 {[%clk 0:00:48]} 31. Nf4 {[%clk 0:00:58]}  g5 {[%clk 0:00:44]} 32. Nxd3 {[%clk 0:00:55]}  Red7 {[%clk 0:00:42]} 33. Nc5 {[%clk 0:00:50]}  Rxd2 {[%clk 0:00:41]} 34. b5 {[%clk 0:00:49]}  Rd1 {[%clk 0:00:39]} 35. Rxd1 {[%clk 0:00:45]}  Rxd1+ {[%clk 0:00:40]} 36. Kf2 {[%clk 0:00:46]}  Bd7 {[%clk 0:00:39]} 37. Re3 {[%clk 0:00:32]}  Bc8 {[%clk 0:00:38]} 38. Re4 {[%clk 0:00:19]}  Rd2+ {[%clk 0:00:37]} 39. Kg3 {[%clk 0:00:18]}  Nf5+ {[%clk 0:00:37]} 40. Kh3 {[%clk 0:00:19]}  b6 {[%clk 0:00:36]} 41. Nb3 {[%clk 0:00:17]}  Rd3 {[%clk 0:00:30]} 42. Nc1 {[%clk 0:00:16]}  Re3 {[%clk 0:00:28]} 43. Rxe3 {[%clk 0:00:15]}  Nxe3 {[%clk 0:00:28]} 44. Kg3 {[%clk 0:00:15]}  Nxc4 {[%clk 0:00:25]} 45. h4 {[%clk 0:00:15]}  e5 {[%clk 0:00:23]} 46. hxg5 {[%clk 0:00:14]}  hxg5 {[%clk 0:00:24]} 47. Nd3 {[%clk 0:00:14]}  Kd6 {[%clk 0:00:25]} 48. Nf2 {[%clk 0:00:13]}  Bf5 {[%clk 0:00:23]} 49. Kh2 {[%clk 0:00:12]}  Na3 {[%clk 0:00:23]} 50. g4 {[%clk 0:00:12]}  Bg6 {[%clk 0:00:23]} 51. Nh3 {[%clk 0:00:10]}  Nxb5 {[%clk 0:00:24]} 52. Nxg5 {[%clk 0:00:09]}  Nd4 {[%clk 0:00:24]} 53. Kg3 {[%clk 0:00:09]}  b5 {[%clk 0:00:24]} 54. f4 {[%clk 0:00:09]}  Ne2+ {[%clk 0:00:24]} 55. Kf3 {[%clk 0:00:09]}  Nxf4 {[%clk 0:00:25]} 56. Ne4+ {[%clk 0:00:07]}  Bxe4+ {[%clk 0:00:25]} 57. Kxe4 {[%clk 0:00:08]}  Ne6 {[%clk 0:00:25]} 58. Kd3 {[%clk 0:00:08]}  Kd5 {[%clk 0:00:25]} 59. Kc3 {[%clk 0:00:08]}  e4 {[%clk 0:00:25]} 0-1


[Site "https://www.chess.com"]